Workbook

Sheet Hoja1
A1: BOTIFARRA | C1: TORNEIG ESTIU 2015
A2: Mes | C2: BOTIFARRA
A3: 1 | C3: Casino Foment Igualada / Can Jordi
C4: 8 d'agost 2015
C6: Premi | D6: Punts | E6: Partides
A7: 1 | B7: Grau | C7: =+C$42 -> 0 | D7: =+C$43 -> 221 | E7: =+D$42 -> 8 | F7: =+C$28 -> 80 | G7: =IF(E7<A$3/2,-1,1)*800+C7+D7/1000 -> 800.221 | J7: FINAL
A8: 2 | B8: Carles | C8: =+U$42 -> 0 | D8: =+U$43 -> 216 | E8: =+V$42 -> 8 | F8: =+U$28 -> 40 | G8: =IF(E8<A$3/2,-1,1)*800+C8+D8/1000 -> 800.216 | J8: Carles/Jaume | N8: 104
A9: 3 | B9: Jordi | C9: =+I$42 -> 0 | D9: =+I$43 -> 206 | E9: =+J$42 -> 8 | F9: =+I$28 -> 20 | G9: =IF(E9<A$3/2,-1,1)*800+C9+D9/1000 -> 800.206 | J9: Grau/Jordi | N9: 80
A10: 4 | B10: Jaume | C10: =+X$42 -> 0 | D10: =+X$43 -> 191 | E10: =+Y$42 -> 8 | F10: =+X$28 -> 10 | G10: =IF(E10<A$3/2,-1,1)*800+C10+D10/1000 -> 800.191
A11: 5 | B11: Núria | C11: =+F$42 -> 0 | D11: =+F$43 -> 147 | E11: =+G$42 -> 8 | F11: =+F$28 -> 5 | G11: =IF(E11<A$3/2,-1,1)*800+C11+D11/1000 -> 800.147
A12: 6 | B12: Toni | C12: =+AG$42 -> 0 | D12: =+AG$43 -> 125 | E12: =+AH$42 -> 6 | F12: =+AG$28 -> 0 | G12: =IF(E12<A$3/2,-1,1)*800+C12+D12/1000 -> 800.125
A13: 7 | B13: Fina | C13: =+AD$42 -> 0 | D13: =+AD$43 -> -82 | E13: =+AE$42 -> 8 | F13: =+AD$28 -> 0 | G13: =IF(E13<A$3/2,-1,1)*800+C13+D13/1000 -> 799.918
A14: 8 | B14: Mª Ángels | C14: =+O$42 -> 0 | D14: =+O$43 -> -155 | E14: =+P$42 -> 8 | F14: =+O$28 -> 0 | G14: =IF(E14<A$3/2,-1,1)*800+C14+D14/1000 -> 799.845
A15: 9 | B15: Sergi | C15: =+R$42 -> 0 | D15: =+R$43 -> -241 | E15: =+S$42 -> 9 | F15: =+R$28 -> 0 | G15: =IF(E15<A$3/2,-1,1)*800+C15+D15/1000 -> 799.759
A16: 10 | B16: Mercè | C16: =+L$42 -> 0 | D16: =+L$43 -> -246 | E16: =+M$42 -> 8 | F16: =+L$28 -> 0 | G16: =IF(E16<A$3/2,-1,1)*800+C16+D16/1000 -> 799.754
A17: 11 | B17: Goretti | C17: =+AA$42 -> 0 | D17: =+AA$43 -> -382 | E17: =+AB$42 -> 9 | F17: =+AA$28 -> 0 | G17: =IF(E17<A$3/2,-1,1)*800+C17+D17/1000 -> 799.618
A18: 12 | B18: Goretti | C18: =+AS$42 -> -100000000 | D18: =+AS$43 -> 1 | E18: =+AT$42 -> 0 | F18: =+AS$28 -> 0 | G18: =IF(E18<A$3/2,-1,1)*800+C18+D18/1000 -> -100000800
A19: 13 | B19: Mercè | C19: =+AY$42 -> -100000000 | D19: =+AY$43 -> 1 | E19: =+AZ$42 -> 0 | F19: =+AY$28 -> 0 | G19: =IF(E19<A$3/2,-1,1)*800+C19+D19/1000 -> -100000800
A20: 14 | B20: Grau | C20: =+AV$42 -> -100000000 | D20: =+AV$43 -> 1 | E20: =+AW$42 -> 0 | F20: =+AV$28 -> 0 | G20: =IF(E20<A$3/2,-1,1)*800+C20+D20/1000 -> -100000800
A21: 15 | B21: Tina | C21: =+AP$42 -> -100000000 | D21: =+AP$43 -> 1 | E21: =+AQ$42 -> 0 | F21: =+AP$28 -> 0 | G21: =IF(E21<A$3/2,-1,1)*800+C21+D21/1000 -> -100000800
A22: 16 | B22: Rubén | C22: =+AM$42 -> -100000000 | D22: =+AM$43 -> 1 | E22: =+AN$42 -> 0 | F22: =+AM$28 -> 0 | G22: =IF(E22<A$3/2,-1,1)*800+C22+D22/1000 -> -100000800
A23: 17 | B23: Salvadó | C23: =+AJ$42 -> -100000000 | D23: =+AJ$43 -> 1 | E23: =+AK$42 -> 0 | F23: =+AJ$28 -> 0 | G23: =IF(E23<A$3/2,-1,1)*800+C23+D23/1000 -> -100000800
A24: 18 | B24: Ester | C24: =+BE$42 -> -100000000 | D24: =+BE$43 -> 1 | E24: =+BF$42 -> 0 | F24: =+BE$28 -> 0 | G24: =IF(E24<A$3/2,-1,1)*800+C24+D24/1000 -> -100000800
A25: 19 | B25: Jorge | C25: =+BB$42 -> -100000000 | D25: =+BB$43 -> 1 | E25: =+BC$42 -> 0 | F25: =+BB$28 -> 0 | G25: =IF(E25<A$3/2,-1,1)*800+C25+D25/1000 -> -100000800
B28: General | C28: =+C29*C30 -> 80 | D28: =+D29*D30 -> 8 | F28: =+F29*F30 -> 5 | G28: =+G29*G30 -> 8 | I28: =+I29*I30 -> 20 | J28: =+J29*J30 -> 8 | L28: =+L29*L30 -> 0 | M28: =+M29*M30 -> 8 | O28: =+O29*O30 -> 0 | P28: =+P29*P30 -> 8 | R28: =+R29*R30 -> 0 | S28: =+S29*S30 -> 9 | U28: =+U29*U30 -> 40 | V28: =+V29*V30 -> 8 | X28: =+X29*X30 -> 10 | Y28: =+Y29*Y30 -> 8 | AA28: =+AA29*AA30 -> 0 | AB28: =+AB29*AB30 -> 9 | AD28: =+AD29*AD30 -> 0 | AE28: =+AE29*AE30 -> 8 | AG28: =+AG29*AG30 -> 0 | AH28: =+AH29*AH30 -> 6 | AJ28: =+AJ29*AJ30 -> 0 | AK28: =+AK29*AK30 -> 0 | AM28: =+AM29*AM30 -> 0 | AN28: =+AN29*AN30 -> 0 | AP28: =+AP29*AP30 -> 0 | AQ28: =+AQ29*AQ30 -> 0 | AS28: =+AS29*AS30 -> 0 | AT28: =+AT29*AT30 -> 0 | AV28: =+AV29*AV30 -> 0 | AW28: =+AW29*AW30 -> 0 | AY28: =+AY29*AY30 -> 0 | AZ28: =+AZ29*AZ30 -> 0 | BB28: =+BB29*BB30 -> 0 | BC28: =+BC29*BC30 -> 0 | BE28: =+BE29*BE30 -> 0 | BF28: =+BF29*BF30 -> 0
C29: =IF($B41>3,1,0) -> 1 | D29: =IF($B41>3,1,0) -> 1 | F29: =IF($B41>3,1,0) -> 1 | G29: =IF($B41>3,1,0) -> 1 | I29: =IF($B41>3,1,0) -> 1 | J29: =IF($B41>3,1,0) -> 1 | L29: =IF($B41>3,1,0) -> 1 | M29: =IF($B41>3,1,0) -> 1 | O29: =IF($B41>3,1,0) -> 1 | P29: =IF($B41>3,1,0) -> 1 | R29: =IF($B41>3,1,0) -> 1 | S29: =IF($B41>3,1,0) -> 1 | U29: =IF($B41>3,1,0) -> 1 | V29: =IF($B41>3,1,0) -> 1 | X29: =IF($B41>3,1,0) -> 1 | Y29: =IF($B41>3,1,0) -> 1 | AA29: =IF($B41>3,1,0) -> 1 | AB29: =IF($B41>3,1,0) -> 1 | AD29: =IF($B41>3,1,0) -> 1 | AE29: =IF($B41>3,1,0) -> 1 | AG29: =IF($B41>3,1,0) -> 1 | AH29: =IF($B41>3,1,0) -> 1 | AJ29: =IF($B41>3,1,0) -> 1 | AK29: =IF($B41>3,1,0) -> 1 | AM29: =IF($B41>3,1,0) -> 1 | AN29: =IF($B41>3,1,0) -> 1 | AP29: =IF($B41>3,1,0) -> 1 | AQ29: =IF($B41>3,1,0) -> 1 | AS29: =IF($B41>3,1,0) -> 1 | AT29: =IF($B41>3,1,0) -> 1 | AV29: =IF($B41>3,1,0) -> 1 | AW29: =IF($B41>3,1,0) -> 1 | AY29: =IF($B41>3,1,0) -> 1 | AZ29: =IF($B41>3,1,0) -> 1 | BB29: =IF($B41>3,1,0) -> 1 | BC29: =IF($B41>3,1,0) -> 1 | BE29: =IF($B41>3,1,0) -> 1 | BF29: =IF($B41>3,1,0) -> 1
C30: =MAX(C31:C35) -> 80 | D30: =+D42 -> 8 | F30: =MAX(F31:F35) -> 5 | G30: =+G42 -> 8 | I30: =MAX(I31:I35) -> 20 | J30: =+J42 -> 8 | L30: =MAX(L31:L35) -> 0 | M30: =+M42 -> 8 | O30: =MAX(O31:O35) -> 0 | P30: =+P42 -> 8 | R30: =MAX(R31:R35) -> 0 | S30: =+S42 -> 9 | U30: =MAX(U31:U35) -> 40 | V30: =+V42 -> 8 | X30: =MAX(X31:X35) -> 10 | Y30: =+Y42 -> 8 | AA30: =MAX(AA31:AA35) -> 0 | AB30: =+AB42 -> 9 | AD30: =MAX(AD31:AD35) -> 0 | AE30: =+AE42 -> 8 | AG30: =MAX(AG31:AG35) -> 0 | AH30: =+AH42 -> 6 | AJ30: =MAX(AJ31:AJ35) -> 0 | AK30: =+AK42 -> 0 | AM30: =MAX(AM31:AM35) -> 0 | AN30: =+AN42 -> 0 | AP30: =MAX(AP31:AP35) -> 0 | AQ30: =+AQ42 -> 0 | AS30: =MAX(AS31:AS35) -> 0 | AT30: =+AT42 -> 0 | AV30: =MAX(AV31:AV35) -> 0 | AW30: =+AW42 -> 0 | AY30: =MAX(AY31:AY35) -> 0 | AZ30: =+AZ42 -> 0 | BB30: =MAX(BB31:BB35) -> 0 | BC30: =+BC42 -> 0 | BE30: =MAX(BE31:BE35) -> 0 | BF30: =+BF42 -> 0
C31: =IF(C$36=5,5,0) -> 0 | F31: =IF(F$36=5,5,0) -> 5 | I31: =IF(I$36=5,5,0) -> 0 | L31: =IF(L$36=5,5,0) -> 0 | O31: =IF(O$36=5,5,0) -> 0 | R31: =IF(R$36=5,5,0) -> 0 | U31: =IF(U$36=5,5,0) -> 0 | X31: =IF(X$36=5,5,0) -> 0 | AA31: =IF(AA$36=5,5,0) -> 0 | AD31: =IF(AD$36=5,5,0) -> 0 | AG31: =IF(AG$36=5,5,0) -> 0 | AJ31: =IF(AJ$36=5,5,0) -> 0 | AM31: =IF(AM$36=5,5,0) -> 0 | AP31: =IF(AP$36=5,5,0) -> 0 | AS31: =IF(AS$36=5,5,0) -> 0 | AV31: =IF(AV$36=5,5,0) -> 0 | AY31: =IF(AY$36=5,5,0) -> 0 | BB31: =IF(BB$36=5,5,0) -> 0 | BE31: =IF(BE$36=5,5,0) -> 0
C32: =IF(C$36=4,10,0) -> 0 | F32: =IF(F$36=4,10,0) -> 0 | I32: =IF(I$36=4,10,0) -> 0 | L32: =IF(L$36=4,10,0) -> 0 | O32: =IF(O$36=4,10,0) -> 0 | R32: =IF(R$36=4,10,0) -> 0 | U32: =IF(U$36=4,10,0) -> 0 | X32: =IF(X$36=4,10,0) -> 10 | AA32: =IF(AA$36=4,10,0) -> 0 | AD32: =IF(AD$36=4,10,0) -> 0 | AG32: =IF(AG$36=4,10,0) -> 0 | AJ32: =IF(AJ$36=4,10,0) -> 0 | AM32: =IF(AM$36=4,10,0) -> 0 | AP32: =IF(AP$36=4,10,0) -> 0 | AS32: =IF(AS$36=4,10,0) -> 0 | AV32: =IF(AV$36=4,10,0) -> 0 | AY32: =IF(AY$36=4,10,0) -> 0 | BB32: =IF(BB$36=4,10,0) -> 0 | BE32: =IF(BE$36=4,10,0) -> 0
C33: =IF(C$36=3,20,0) -> 0 | F33: =IF(F$36=3,20,0) -> 0 | I33: =IF(I$36=3,20,0) -> 20 | L33: =IF(L$36=3,20,0) -> 0 | O33: =IF(O$36=3,20,0) -> 0 | R33: =IF(R$36=3,20,0) -> 0 | U33: =IF(U$36=3,20,0) -> 0 | X33: =IF(X$36=3,20,0) -> 0 | AA33: =IF(AA$36=3,20,0) -> 0 | AD33: =IF(AD$36=3,20,0) -> 0 | AG33: =IF(AG$36=3,20,0) -> 0 | AJ33: =IF(AJ$36=3,20,0) -> 0 | AM33: =IF(AM$36=3,20,0) -> 0 | AP33: =IF(AP$36=3,20,0) -> 0 | AS33: =IF(AS$36=3,20,0) -> 0 | AV33: =IF(AV$36=3,20,0) -> 0 | AY33: =IF(AY$36=3,20,0) -> 0 | BB33: =IF(BB$36=3,20,0) -> 0 | BE33: =IF(BE$36=3,20,0) -> 0
C34: =IF(C$36=2,40,0) -> 0 | F34: =IF(F$36=2,40,0) -> 0 | I34: =IF(I$36=2,40,0) -> 0 | L34: =IF(L$36=2,40,0) -> 0 | O34: =IF(O$36=2,40,0) -> 0 | R34: =IF(R$36=2,40,0) -> 0 | U34: =IF(U$36=2,40,0) -> 40 | X34: =IF(X$36=2,40,0) -> 0 | AA34: =IF(AA$36=2,40,0) -> 0 | AD34: =IF(AD$36=2,40,0) -> 0 | AG34: =IF(AG$36=2,40,0) -> 0 | AJ34: =IF(AJ$36=2,40,0) -> 0 | AM34: =IF(AM$36=2,40,0) -> 0 | AP34: =IF(AP$36=2,40,0) -> 0 | AS34: =IF(AS$36=2,40,0) -> 0 | AV34: =IF(AV$36=2,40,0) -> 0 | AY34: =IF(AY$36=2,40,0) -> 0 | BB34: =IF(BB$36=2,40,0) -> 0 | BE34: =IF(BE$36=2,40,0) -> 0
C35: =IF(C$36=1,80,0) -> 80 | F35: =IF(F$36=1,80,0) -> 0 | I35: =IF(I$36=1,80,0) -> 0 | L35: =IF(L$36=1,80,0) -> 0 | O35: =IF(O$36=1,80,0) -> 0 | R35: =IF(R$36=1,80,0) -> 0 | U35: =IF(U$36=1,80,0) -> 0 | X35: =IF(X$36=1,80,0) -> 0 | AA35: =IF(AA$36=1,80,0) -> 0 | AD35: =IF(AD$36=1,80,0) -> 0 | AG35: =IF(AG$36=1,80,0) -> 0 | AJ35: =IF(AJ$36=1,80,0) -> 0 | AM35: =IF(AM$36=1,80,0) -> 0 | AP35: =IF(AP$36=1,80,0) -> 0 | AS35: =IF(AS$36=1,80,0) -> 0 | AV35: =IF(AV$36=1,80,0) -> 0 | AY35: =IF(AY$36=1,80,0) -> 0 | BB35: =IF(BB$36=1,80,0) -> 0 | BE35: =IF(BE$36=1,80,0) -> 0
C36: =RANK(C37,$C37:$BF37)*C41 -> 1 | F36: =RANK(F37,$C37:$BF37)*F41 -> 5 | I36: =RANK(I37,$C37:$BF37)*I41 -> 3 | L36: =RANK(L37,$C37:$BF37)*L41 -> 10 | O36: =RANK(O37,$C37:$BF37)*O41 -> 8 | R36: =RANK(R37,$C37:$BF37)*R41 -> 9 | U36: =RANK(U37,$C37:$BF37)*U41 -> 2 | X36: =RANK(X37,$C37:$BF37)*X41 -> 4 | AA36: =RANK(AA37,$C37:$BF37)*AA41 -> 11 | AD36: =RANK(AD37,$C37:$BF37)*AD41 -> 7 | AG36: =RANK(AG37,$C37:$BF37)*AG41 -> 6 | AJ36: =RANK(AJ37,$C37:$BF37)*AJ41 -> 0 | AM36: =RANK(AM37,$C37:$BF37)*AM41 -> 0 | AP36: =RANK(AP37,$C37:$BF37)*AP41 -> 0 | AS36: =RANK(AS37,$C37:$BF37)*AS41 -> 0 | AV36: =RANK(AV37,$C37:$BF37)*AV41 -> 0 | AY36: =RANK(AY37,$C37:$BF37)*AY41 -> 0 | BB36: =RANK(BB37,$C37:$BF37)*BB41 -> 0 | BE36: =RANK(BE37,$C37:$BF37)*BE41 -> 0
C37: =SUM(C38:C40) -> 22108 | F37: =SUM(F38:F40) -> 14708 | I37: =SUM(I38:I40) -> 20608 | L37: =SUM(L38:L40) -> -24592 | O37: =SUM(O38:O40) -> -15492 | R37: =SUM(R38:R40) -> -24091 | U37: =SUM(U38:U40) -> 21608 | X37: =SUM(X38:X40) -> 19108 | AA37: =SUM(AA38:AA40) -> -38191 | AD37: =SUM(AD38:AD40) -> -8192 | AG37: =SUM(AG38:AG40) -> 12506 | AJ37: =SUM(AJ38:AJ40) -> -999999998 | AM37: =SUM(AM38:AM40) -> -999999998 | AP37: =SUM(AP38:AP40) -> -999999998 | AS37: =SUM(AS38:AS40) -> -999999900 | AV37: =SUM(AV38:AV40) -> -999999900 | AY37: =SUM(AY38:AY40) -> -999999900 | BB37: =SUM(BB38:BB40) -> -9999900 | BE37: =SUM(BE38:BE40) -> -9999900
C38: =+D42 -> 8 | F38: =+G42 -> 8 | I38: =+J42 -> 8 | L38: =+M42 -> 8 | O38: =+P42 -> 8 | R38: =+S42 -> 9 | U38: =+V42 -> 8 | X38: =+Y42 -> 8 | AA38: =+AB42 -> 9 | AD38: =+AE42 -> 8 | AG38: =+AH42 -> 6 | AJ38: =+AK42 -> 0 | AM38: =+AN42 -> 0 | AP38: =+AQ42 -> 0 | AS38: =+AT42 -> 0 | AV38: =+AW42 -> 0 | AY38: =+AZ42 -> 0 | BB38: =+BC42 -> 0 | BE38: =+BF42 -> 0
C39: =+C43*100 -> 22100 | F39: =+F43*100 -> 14700 | I39: =+I43*100 -> 20600 | L39: =+L43*100 -> -24600 | O39: =+O43*100 -> -15500 | R39: =+R43*100 -> -24100 | U39: =+U43*100 -> 21600 | X39: =+X43*100 -> 19100 | AA39: =+AA43*100 -> -38200 | AD39: =+AD43*100 -> -8200 | AG39: =+AG43*100 -> 12500 | AJ39: =+AJ43*2 -> 2 | AM39: =+AM43*2 -> 2 | AP39: =+AP43*2 -> 2 | AS39: =+AS43*100 -> 100 | AV39: =+AV43*100 -> 100 | AY39: =+AY43*100 -> 100 | BB39: =+BB43*100 -> 100 | BE39: =+BE43*100 -> 100
C40: =IF(D42-$A3/2<0,-1000000000,C42*C41*100000+C42) -> 0 | F40: =IF(G42-$A3/2<0,-1000000000,F42*F41*100000+F42) -> 0 | I40: =IF(J42-$A3/2<0,-1000000000,I42*I41*100000+I42) -> 0 | L40: =IF(M42-$A3/2<0,-1000000000,L42*L41*100000+L42) -> 0 | O40: =IF(P42-$A3/2<0,-1000000000,O42*O41*100000+O42) -> 0 | R40: =IF(S42-$A3/2<0,-1000000000,R42*R41*100000+R42) -> 0 | U40: =IF(V42-$A3/2<0,-1000000000,U42*U41*100000+U42) -> 0 | X40: =IF(Y42-$A3/2<0,-1000000000,X42*X41*100000+X42) -> 0 | AA40: =IF(AB42-$A3/2<0,-1000000000,AA42*AA41*100000+AA42) -> 0 | AD40: =IF(AE42-$A3/2<0,-1000000000,AD42*AD41*100000+AD42) -> 0 | AG40: =IF(AH42-$A3/2<0,-1000000000,AG42*AG41*100000+AG42) -> 0 | AJ40: =IF(AK42-$A3/2<0,-1000000000,AJ42*AJ41*100000+AJ42) -> -1000000000 | AM40: =IF(AN42-$A3/2<0,-1000000000,AM42*AM41*100000+AM42) -> -1000000000 | AP40: =IF(AQ42-$A3/2<0,-1000000000,AP42*AP41*100000+AP42) -> -1000000000 | AS40: =IF(AT42-$A3/2<0,-1000000000,AS42*AS41*100000+AS42) -> -1000000000 | AV40: =IF(AW42-$A3/2<0,-1000000000,AV42*AV41*100000+AV42) -> -1000000000 | AY40: =IF(AZ42-$A3/2<0,-1000000000,AY42*AY41*100000+AY42) -> -1000000000 | BB40: =IF(BC42-$A3/2<0,-10000000,BB42*BB41*100000+BB42) -> -10000000 | BE40: =IF(BF42-$A3/2<0,-10000000,BE42*BE41*100000+BE42) -> -10000000
A41: Classificats | B41: =SUM(C41:BE41) -> 11 | C41: =IF(D42>=$A3/2,1,0) -> 1 | F41: =IF(G42>=$A3/2,1,0) -> 1 | I41: =IF(J42>=$A3/2,1,0) -> 1 | L41: =IF(M42>=$A3/2,1,0) -> 1 | O41: =IF(P42>=$A3/2,1,0) -> 1 | R41: =IF(S42>=$A3/2,1,0) -> 1 | U41: =IF(V42>=$A3/2,1,0) -> 1 | X41: =IF(Y42>=$A3/2,1,0) -> 1 | AA41: =IF(AB42>=$A3/2,1,0) -> 1 | AD41: =IF(AE42>=$A3/2,1,0) -> 1 | AG41: =IF(AH42>=$A3/2,1,0) -> 1 | AJ41: =IF(AK42>=$A3/2,1,0) -> 0 | AM41: =IF(AN42>=$A3/2,1,0) -> 0 | AP41: =IF(AQ42>=$A3/2,1,0) -> 0 | AS41: =IF(AT42>=$A3/2,1,0) -> 0 | AV41: =IF(AW42>=$A3/2,1,0) -> 0 | AY41: =IF(AZ42>=$A3/2,1,0) -> 0 | BB41: =IF(BC42>=$A3/2,1,0) -> 0 | BE41: =IF(BF42>=$A3/2,1,0) -> 0
C42: =IF(SUM(C47:C57)<-1000,-100000000,SUM(C47:C57)) -> 0 | D42: =COUNT(D47:D57) -> 8 | F42: =IF(SUM(F47:F57)<-1000,-100000000,SUM(F47:F57)) -> 0 | G42: =COUNT(G47:G57) -> 8 | I42: =IF(SUM(I47:I57)<-1000,-100000000,SUM(I47:I57)) -> 0 | J42: =COUNT(J47:J57) -> 8 | L42: =IF(SUM(L47:L57)<-1000,-100000000,SUM(L47:L57)) -> 0 | M42: =COUNT(M47:M57) -> 8 | O42: =IF(SUM(O47:O57)<-1000,-100000000,SUM(O47:O57)) -> 0 | P42: =COUNT(P47:P57) -> 8 | R42: =IF(SUM(R47:R57)<-1000,-100000000,SUM(R47:R57)) -> 0 | S42: =COUNT(S47:S57) -> 9 | U42: =IF(SUM(U47:U57)<-1000,-100000000,SUM(U47:U57)) -> 0 | V42: =COUNT(V47:V57) -> 8 | X42: =IF(SUM(X47:X57)<-1000,-100000000,SUM(X47:X57)) -> 0 | Y42: =COUNT(Y47:Y57) -> 8 | AA42: =IF(SUM(AA47:AA57)<-1000,-100000000,SUM(AA47:AA57)) -> 0 | AB42: =COUNT(AB47:AB57) -> 9 | AD42: =IF(SUM(AD47:AD57)<-1000,-100000000,SUM(AD47:AD57)) -> 0 | AE42: =COUNT(AE47:AE57) -> 8 | AG42: =IF(SUM(AG47:AG57)<-1000,-100000000,SUM(AG47:AG57)) -> 0 | AH42: =COUNT(AH47:AH57) -> 6 | AJ42: =IF(SUM(AJ47:AJ57)<-1000,-100000000,SUM(AJ47:AJ57)) -> -100000000 | AK42: =COUNT(AK47:AK57) -> 0 | AM42: =IF(SUM(AM47:AM57)<-1000,-100000000,SUM(AM47:AM57)) -> -100000000 | AN42: =COUNT(AN47:AN57) -> 0 | AP42: =IF(SUM(AP47:AP57)<-1000,-100000000,SUM(AP47:AP57)) -> -100000000 | AQ42: =COUNT(AQ47:AQ57) -> 0 | AS42: =IF(SUM(AS47:AS57)<-1000,-100000000,SUM(AS47:AS57)) -> -100000000 | AT42: =COUNT(AT47:AT57) -> 0 | AV42: =IF(SUM(AV47:AV57)<-1000,-100000000,SUM(AV47:AV57)) -> -100000000 | AW42: =COUNT(AW47:AW57) -> 0 | AY42: =IF(SUM(AY47:AY57)<-1000,-100000000,SUM(AY47:AY57)) -> -100000000 | AZ42: =COUNT(AZ47:AZ57) -> 0 | BB42: =IF(SUM(BB47:BB57)<-1000,-100000000,SUM(BB47:BB57)) -> -100000000 | BC42: =COUNT(BC47:BC57) -> 0 | BE42: =IF(SUM(BE47:BE57)<-1000,-100000000,SUM(BE47:BE57)) -> -100000000 | BF42: =COUNT(BF47:BF57) -> 0 | BI42: A
C43: =+D43-E43 -> 221 | D43: =SUM(D47:D57) -> 558 | E43: =SUM(E47:E57) -> 337 | F43: =+G43-H43 -> 147 | G43: =SUM(G47:G57) -> 547 | H43: =SUM(H47:H57) -> 400 | I43: =+J43-K43 -> 206 | J43: =SUM(J47:J57) -> 574 | K43: =SUM(K47:K57) -> 368 | L43: =+M43-N43 -> -246 | M43: =SUM(M47:M57) -> 401 | N43: =SUM(N47:N57) -> 647 | O43: =+P43-Q43 -> -155 | P43: =SUM(P47:P57) -> 423 | Q43: =SUM(Q47:Q57) -> 578 | R43: =+S43-T43 -> -241 | S43: =SUM(S47:S57) -> 438 | T43: =SUM(T47:T57) -> 679 | U43: =+V43-W43 -> 216 | V43: =SUM(V47:V57) -> 651 | W43: =SUM(W47:W57) -> 435 | X43: =+Y43-Z43 -> 191 | Y43: =SUM(Y47:Y57) -> 608 | Z43: =SUM(Z47:Z57) -> 417 | AA43: =+AB43-AC43 -> -382 | AB43: =SUM(AB47:AB57) -> 397 | AC43: =SUM(AC47:AC57) -> 779 | AD43: =+AE43-AF43 -> -82 | AE43: =SUM(AE47:AE57) -> 493 | AF43: =SUM(AF47:AF57) -> 575 | AG43: =+AH43-AI43 -> 125 | AH43: =SUM(AH47:AH57) -> 426 | AI43: =SUM(AI47:AI57) -> 301 | AJ43: =+AK43-AL43 -> 1 | AK43: =SUM(AK47:AK57) -> 0 | AL43: =SUM(AL47:AL57) -> -1 | AM43: =+AN43-AO43 -> 1 | AN43: =SUM(AN47:AN57) -> 0 | AO43: =SUM(AO47:AO57) -> -1 | AP43: =+AQ43-AR43 -> 1 | AQ43: =SUM(AQ47:AQ57) -> 0 | AR43: =SUM(AR47:AR57) -> -1 | AS43: =+AT43-AU43 -> 1 | AT43: =SUM(AT47:AT57) -> 0 | AU43: =SUM(AU47:AU57) -> -1 | AV43: =+AW43-AX43 -> 1 | AW43: =SUM(AW47:AW57) -> 0 | AX43: =SUM(AX47:AX57) -> -1 | AY43: =+AZ43-BA43 -> 1 | AZ43: =SUM(AZ47:AZ57) -> 0 | BA43: =SUM(BA47:BA57) -> -1 | BB43: =+BC43-BD43 -> 1 | BC43: =SUM(BC47:BC57) -> 0 | BD43: =SUM(BD47:BD57) -> -1 | BE43: =+BF43-BG43 -> 1 | BF43: =SUM(BF47:BF57) -> 0 | BG43: =SUM(BG47:BG57) -> -1 | BI43: B
I44: =COUNTIF(I47:I57,10) -> 0 | R44: =COUNTIF(R47:R57,10) -> 0 | U44: =COUNTIF(U47:U57,10) -> 0 | X44: =COUNTIF(X47:X57,10) -> 0 | AS44: =COUNTIF(AS47:AS57,10) -> 0 | AV44: =COUNTIF(AV47:AV57,10) -> 0 | AY44: =COUNTIF(AY47:AY57,10) -> 0 | BH44: =MAX(BI47:BI57) -> 1
B45: Hora | C45: Grau | F45: Núria | I45: Jordi | L45: Mercè | O45: Mª Angels | R45: Sergi | U45: Carles | X45: Jaume | AA45: Goretti | AD45: Fina | AG45: Toni | BB45: Jorge | BE45: Ester | BH45: =COUNT(BH47:BH72) -> 0 | BI45: A | BJ45: B | BK45: C
D46: F | E46: C | G46: F | H46: C | J46: F | K46: C | M46: F | N46: C | P46: F | Q46: C | S46: F | T46: C | V46: F | W46: C | Y46: F | Z46: C | AB46: F | AC46: C | AE46: F | AF46: C | AH46: F | AI46: C | AJ46: Premi | AK46: Punts | AM46: Premi | AN46: Punts | AP46: Premi | AQ46: Punts | AS46: Premi | AT46: Punts | AV46: Premi | AW46: Punts | AY46: Premi | AZ46: Punts | BB46: Premi | BC46: Punts | BE46: Premi | BF46: Punts | BH46: Data | BI46: Timba
A47: 1 | B47: 19:00:00 | G47: 88 | H47: 47 | J47: 109 | K47: 14 | M47: 14 | N47: 109 | V47: 88 | W47: 47 | Y47: 109 | Z47: 14 | AB47: 14 | AC47: 109 | AE47: 47 | AF47: 88 | AH47: 47 | AI47: 88 | AJ47: -10000 | AL47: -1 | AM47: -10000 | AO47: -1 | AP47: -10000 | AR47: -1 | AS47: -10000 | AU47: -1 | AV47: -10000 | AX47: -1 | AY47: -10000 | BA47: -1 | BB47: -10000 | BD47: -1 | BE47: -10000 | BG47: -1 | BI47: 1 | BJ47: =+BE47+AJ47+AG47+AD47+AA47+X47+U47+R47+O47+L47+I47+F47+C47+AM47+AP47+AS47+AV47+AY47+BB47 -> -80000 | BK47: 516 | BL47: 508 | BM47: =+BK47-BL47 -> 8 | BN47: =COUNT(C47:BG47)/3 -> 10.66666667 | BO47: =+BJ47/BN47 -> -7500
A48: =+A47+1 -> 2 | B48: 19:59:00 | D48: 48 | E48: 20 | M48: 20 | N48: 48 | P48: 48 | Q48: 20 | S48: 91 | T48: 67 | V48: 67 | W48: 91 | AB48: 20 | AC48: 48 | AE48: 67 | AF48: 91 | AH48: 91 | AI48: 67 | BJ48: 0 | BK48: 452 | BL48: 452 | BM48: 0 | BN48: 5.333333333 | BO48: 0
A49: =+A48+1 -> 3 | B49: 20:50:00 | D49: 96 | E49: 59 | G49: 59 | H49: 96 | J49: 106 | K49: 41 | M49: 96 | N49: 59 | P49: 59 | Q49: 96 | S49: 41 | T49: 106 | Y49: 106 | Z49: 41 | AB49: 41 | AC49: 106 | BJ49: 0 | BK49: 604 | BL49: 604 | BM49: 0 | BN49: 5.333333333 | BO49: 0
A50: 4 | B50: 21:42:00 | D50: 71 | E50: 23 | G50: 71 | H50: 23 | J50: 33 | K50: 82 | P50: 23 | Q50: 71 | S50: 33 | T50: 82 | V50: 23 | W50: 71 | AE50: 82 | AF50: 33 | AH50: 82 | AI50: 33 | BJ50: 0 | BK50: 418 | BL50: 418 | BM50: 0 | BN50: 5.333333333 | BO50: 0
A51: 5 | B51: 00:36:00 | M51: 63 | N51: 88 | P51: 88 | Q51: 63 | S51: 63 | T51: 88 | V51: 100 | W51: 46 | Y51: 46 | Z51: 100 | AB51: 46 | AC51: 100 | AE51: 88 | AF51: 63 | AH51: 100 | AI51: 46 | BJ51: 0 | BK51: 594 | BL51: 594 | BM51: 0 | BN51: 5.333333333 | BO51: 0
A52: 6 | B52: 01:12:00 | D52: 57 | E52: 10 | G52: 23 | H52: 61 | J52: 61 | K52: 23 | M52: 23 | N52: 61 | P52: 57 | Q52: 10 | S52: 10 | T52: 57 | Y52: 61 | Z52: 23 | AB52: 10 | AC52: 57 | BJ52: 0 | BK52: 302 | BL52: 302 | BM52: 0 | BN52: 5.333333333 | BO52: 0
A53: 7 | B53: 02:07:00 | D53: 21 | E53: 101 | G53: 44 | H53: 26 | J53: 44 | K53: 26 | V53: 101 | W53: 21 | Y53: 101 | Z53: 21 | AB53: 21 | AC53: 101 | AE53: 26 | AF53: 44 | AH53: 26 | AI53: 44 | BJ53: 0 | BK53: 384 | BL53: 384 | BM53: 0 | BN53: 5.333333333 | BO53: 0
A54: 8 | B54: 03:02:00 | D54: 80 | E54: 23 | G54: 104 | H54: 10 | M54: 23 | N54: 80 | P54: 10 | Q54: 104 | S54: 23 | T54: 80 | V54: 104 | W54: 10 | AE54: 10 | AF54: 104 | AH54: 80 | AI54: 23 | BJ54: 0 | BK54: 434 | BL54: 434 | BM54: 0 | BN54: 5.333333333 | BO54: 0
A55: 9 | B55: 04:32:00 | G55: 57 | H55: 60 | J55: 60 | K55: 57 | M55: 85 | N55: 101 | P55: 85 | Q55: 101 | S55: 57 | T55: 60 | Y55: 60 | Z55: 57 | AB55: 101 | AC55: 85 | AE55: 101 | AF55: 85 | BJ55: 0 | BK55: 606 | BL55: 606 | BM55: 0 | BN55: 5.333333333 | BO55: 0
A56: 10 | B56: 05:30:00 | D56: 72 | E56: 48 | G56: 101 | H56: 77 | J56: 48 | K56: 72 | M56: 77 | N56: 101 | S56: 48 | T56: 72 | V56: 101 | W56: 77 | Y56: 72 | Z56: 48 | AB56: 77 | AC56: 101 | BJ56: 0 | BK56: 596 | BL56: 596 | BM56: 0 | BN56: 5.333333333 | BO56: 0
A57: 11 | B57: 06:25:00 | D57: 113 | E57: 53 | J57: 113 | K57: 53 | P57: 53 | Q57: 113 | S57: 72 | T57: 67 | V57: 67 | W57: 72 | Y57: 53 | Z57: 113 | AB57: 67 | AC57: 72 | AE57: 72 | AF57: 67 | BJ57: 0 | BK57: 610 | BL57: 610 | BM57: 0 | BN57: 5.333333333 | BO57: 0

Sheet Hoja2

Sheet Hoja3
